[Event "*** Titled Tuesday Blitz"]
[Site "Chess.com"]
[Date "2020.04.14"]
[Round "6"]
[White "hazy13"]
[Black "pedroholly22"]
[Result "0-1"]
[WhiteElo "2193"]
[BlackElo "2338"]
[TimeControl "180+1"]
[EndTime "11:05:05 PDT"]
[Termination "pedroholly22 won by resignation"]

1. d4 {[%clk 0:03:00.9]} 1... Nf6 {[%clk 0:02:58.3]} 2. c4 {[%clk 0:03:00.5]}
2... e6 {[%clk 0:02:58.5]} 3. g3 {[%clk 0:03:00.2]} 3... c5 {[%clk 0:02:57.8]}
4. d5 {[%clk 0:03:00.2]} 4... exd5 {[%clk 0:02:58.3]} 5. cxd5 {[%clk 0:03:01.1]}
5... d6 {[%clk 0:02:58.7]} 6. Nc3 {[%clk 0:03:01.1]} 6... g6 {[%clk 0:02:59.1]}
7. Bg2 {[%clk 0:03:01.5]} 7... Bg7 {[%clk 0:02:59.6]} 8. Nf3 {[%clk 0:03:02]}
8... O-O {[%clk 0:03:00]} 9. O-O {[%clk 0:03:02.5]} 9... Na6 {[%clk 0:02:51]}
10. Nd2 {[%clk 0:02:51.9]} 10... Nc7 {[%clk 0:02:49.2]} 11. a4 {[%clk 0:02:50]}
11... b6 {[%clk 0:02:48.6]} 12. Nc4 {[%clk 0:02:45.3]} 12... Rb8 {[%clk
0:02:47.8]} 13. Bf4 {[%clk 0:02:43.1]} 13... Nfe8 {[%clk 0:02:44.8]} 14. Ne4
{[%clk 0:02:25.3]} 14... Ba6 {[%clk 0:02:36.3]} 15. Nexd6 {[%clk 0:02:18.6]}
15... Nxd6 {[%clk 0:02:34.6]} 16. Nxd6 {[%clk 0:02:16.6]} 16... g5 {[%clk
0:02:33.3]} 17. Nf5 {[%clk 0:02:07.6]} 17... gxf4 {[%clk 0:02:31.1]} 18. d6
{[%clk 0:01:59.7]} 18... Ne6 {[%clk 0:02:30.1]} 19. Be4 {[%clk 0:01:48.3]} 19...
Nd4 {[%clk 0:02:16]} 20. e3 {[%clk 0:01:31.7]} 20... fxe3 {[%clk 0:02:04]} 21.
Ne7+ {[%clk 0:01:25.3]} 21... Qxe7 {[%clk 0:01:10.3]} 22. dxe7 {[%clk
0:01:26.2]} 22... e2 {[%clk 0:01:03.5]} 23. exf8=Q+ {[%clk 0:01:25.4]} 23...
Rxf8 {[%clk 0:01:00.7]} 24. Qd2 {[%clk 0:01:03.2]} 24... exf1=Q+ {[%clk
0:00:55.7]} 25. Rxf1 {[%clk 0:01:04.1]} 25... Re8 {[%clk 0:00:54.6]} 26. Bd5
{[%clk 0:00:22.3]} 26... Rd8 {[%clk 0:00:48.2]} 27. Qg5 {[%clk 0:00:15.9]} 27...
Rd7 {[%clk 0:00:32.7]} 28. Re1 {[%clk 0:00:14.1]} 28... Kf8 {[%clk 0:00:30.9]}
29. h4 {[%clk 0:00:12.1]} 29... h6 {[%clk 0:00:25.6]} 30. Qh5 {[%clk 0:00:11.6]}
30... Be2 {[%clk 0:00:22.6]} 31. Rxe2 {[%clk 0:00:08.3]} 31... Nxe2+ {[%clk
0:00:22.4]} 32. Kg2 {[%clk 0:00:06.3]} 32... Nd4 {[%clk 0:00:19.2]} 33. Be4
{[%clk 0:00:03.9]} 33... Re7 {[%clk 0:00:19.2]} 34. Qd5 {[%clk 0:00:03.5]} 34...
Re8 {[%clk 0:00:16.9]} 35. Qd6+ {[%clk 0:00:03.1]} 35... Kg8 {[%clk 0:00:16.8]}
36. Bd5 {[%clk 0:00:03.7]} 36... Rf8 {[%clk 0:00:16.4]} 37. Qd7 {[%clk
0:00:02.9]} 37... Nc2 {[%clk 0:00:15.7]} 38. Qxa7 {[%clk 0:00:03.1]} 38... Bxb2
{[%clk 0:00:14.7]} 39. Qxb6 {[%clk 0:00:03.1]} 39... Bd4 {[%clk 0:00:15.2]} 40.
a5 {[%clk 0:00:01.9]} 40... Nb4 {[%clk 0:00:15.7]} 41. a6 {[%clk 0:00:01.5]}
41... Nxd5 {[%clk 0:00:15.7]} 42. Qc6 {[%clk 0:00:01.7]} 42... Nb4 {[%clk
0:00:15.7]} 43. Qb7 {[%clk 0:00:01.6]} 43... Nxa6 {[%clk 0:00:15.7]} 44. Qxa6
{[%clk 0:00:01.7]} 44... Kg7 {[%clk 0:00:15.7]} 45. Qc4 {[%clk 0:00:02.6]} 45...
Re8 {[%clk 0:00:15.8]} 46. Qd5 {[%clk 0:00:03.5]} 46... Re5 {[%clk 0:00:15.5]}
47. Qf3 {[%clk 0:00:03.9]} 47... Re6 {[%clk 0:00:15.2]} 48. Qd5 {[%clk
0:00:04.1]} 48... Rf6 {[%clk 0:00:15.2]} 49. Qc4 {[%clk 0:00:05]} 49... Rxf2+
{[%clk 0:00:15]} 50. Kh3 {[%clk 0:00:05.9]} 50... Rf6 {[%clk 0:00:15.4]} 51. Kg4
{[%clk 0:00:05]} 51... Rg6+ {[%clk 0:00:16]} 52. Kf3 {[%clk 0:00:05.2]} 52...
Rf6+ {[%clk 0:00:16.9]} 53. Kg2 {[%clk 0:00:05.2]} 53... Re6 {[%clk 0:00:17.5]}
54. Kh3 {[%clk 0:00:05.2]} 54... Rg6 {[%clk 0:00:17.9]} 55. g4 {[%clk
0:00:05.3]} 55... Re6 {[%clk 0:00:16.1]} 56. Kg3 {[%clk 0:00:04.9]} 56... Re3+
{[%clk 0:00:15.5]} 57. Kf4 {[%clk 0:00:04.9]} 57... Rc3 {[%clk 0:00:15.2]} 58.
Qd5 {[%clk 0:00:05.4]} 58... Ra3 {[%clk 0:00:14]} 59. g5 {[%clk 0:00:04.5]}
59... hxg5+ {[%clk 0:00:13.6]} 60. hxg5 {[%clk 0:00:05.1]} 60... Re3 {[%clk
0:00:11.1]} 61. Kf5 {[%clk 0:00:03.5]} 61... Re5+ {[%clk 0:00:10.8]} 62. Qxe5+
{[%clk 0:00:04]} 62... Bxe5 {[%clk 0:00:11.3]} 63. Kxe5 {[%clk 0:00:04.9]} 63...
Kg6 {[%clk 0:00:11.2]} 64. Kd5 {[%clk 0:00:05.4]} 64... Kxg5 {[%clk 0:00:10.2]}
65. Kxc5 {[%clk 0:00:06]} 65... Kf4 {[%clk 0:00:10.8]} 66. Kc4 {[%clk 0:00:06]}
66... f5 {[%clk 0:00:11.3]} 67. Kd3 {[%clk 0:00:06]} 67... Kf3 {[%clk
0:00:11.9]} 68. Kd2 {[%clk 0:00:06.5]} 68... Kf2 {[%clk 0:00:10.1]} 69. Kd3
{[%clk 0:00:06.8]} 69... f4 {[%clk 0:00:10.6]} 70. Ke4 {[%clk 0:00:07.7]} 70...
f3 {[%clk 0:00:11.5]} 71. Kf4 {[%clk 0:00:08.3]} 0-1

[Event "*** Titled Tuesday Blitz"]
[Site "Chess.com"]
[Date "2020.04.14"]
[Round "6"]
[White "saikrishnaReturns"]
[Black "exoticprincess"]
[Result "0-1"]
[WhiteElo "2622"]
[BlackElo "2837"]
[TimeControl "180+1"]
[EndTime "11:05:06 PDT"]
[Termination "exoticprincess won by checkmate"]

1. e4 {[%clk 0:03:00.9]} 1... c6 {[%clk 0:03:00.9]} 2. d3 {[%clk 0:02:59.7]}
2... d5 {[%clk 0:03:01.8]} 3. Nd2 {[%clk 0:03:00.2]} 3... e5 {[%clk 0:03:01.5]}
4. Ngf3 {[%clk 0:03:00.4]} 4... Bd6 {[%clk 0:03:01.8]} 5. g3 {[%clk 0:03:00.7]}
5... Nf6 {[%clk 0:03:01.5]} 6. Bg2 {[%clk 0:03:01.3]} 6... O-O {[%clk
0:03:01.8]} 7. O-O {[%clk 0:03:01.9]} 7... Re8 {[%clk 0:03:02.4]} 8. Re1 {[%clk
0:03:02.1]} 8... Nbd7 {[%clk 0:03:02.6]} 9. c3 {[%clk 0:02:59.1]} 9... a5 {[%clk
0:03:02.1]} 10. a4 {[%clk 0:02:58.5]} 10... h6 {[%clk 0:02:59.1]} 11. Nf1 {[%clk
0:02:47]} 11... Bf8 {[%clk 0:02:57.8]} 12. Qc2 {[%clk 0:02:41.1]} 12... Qc7
{[%clk 0:02:57.7]} 13. Ne3 {[%clk 0:02:39.4]} 13... dxe4 {[%clk 0:02:57.3]} 14.
dxe4 {[%clk 0:02:39.3]} 14... Nc5 {[%clk 0:02:57.9]} 15. Nh4 {[%clk 0:02:25.8]}
15... Be6 {[%clk 0:02:53.5]} 16. Nef5 {[%clk 0:02:15.3]} 16... Rad8 {[%clk
0:02:46.3]} 17. Be3 {[%clk 0:02:13.3]} 17... Bb3 {[%clk 0:02:45]} 18. Qe2 {[%clk
0:02:12.8]} 18... Kh7 {[%clk 0:02:29.1]} 19. Ra3 {[%clk 0:01:54.4]} 19... Be6
{[%clk 0:02:26.3]} 20. Raa1 {[%clk 0:01:37]} 20... Nb3 {[%clk 0:02:14.9]} 21.
Rad1 {[%clk 0:01:36.1]} 21... g6 {[%clk 0:02:12]} 22. g4 {[%clk 0:01:04.9]}
22... gxf5 {[%clk 0:02:07.2]} 23. exf5 {[%clk 0:01:02]} 23... Rxd1 {[%clk
0:02:04.7]} 24. Rxd1 {[%clk 0:00:55.9]} 24... Bd5 {[%clk 0:02:04.9]} 25. g5
{[%clk 0:00:54.2]} 25... hxg5 {[%clk 0:01:57.2]} 26. Bxg5 {[%clk 0:00:55.1]}
26... Bg7 {[%clk 0:01:51.9]} 27. Rd3 {[%clk 0:00:42.4]} 27... Kg8 {[%clk
0:01:20.1]} 28. Rg3 {[%clk 0:00:32]} 28... Kf8 {[%clk 0:01:20.1]} 29. Be3 {[%clk
0:00:18.9]} 29... Qd7 {[%clk 0:01:04]} 30. Bf1 {[%clk 0:00:18.5]} 30... Nd4
{[%clk 0:00:58.1]} 31. Qd1 {[%clk 0:00:13.9]} 31... Nxf5 {[%clk 0:00:50.7]} 32.
Nxf5 {[%clk 0:00:11.6]} 32... Qxf5 {[%clk 0:00:50.4]} 33. Bc5+ {[%clk
0:00:11.7]} 33... Kg8 {[%clk 0:00:49.4]} 34. Bh3 {[%clk 0:00:10.5]} 34... Qe4
{[%clk 0:00:47.1]} 35. Bg2 {[%clk 0:00:09.8]} 35... Qc4 {[%clk 0:00:44.9]} 36.
Be3 {[%clk 0:00:09.2]} 36... Bxg2 {[%clk 0:00:43.9]} 37. Bh6 {[%clk 0:00:09.1]}
37... Nh5 {[%clk 0:00:34.1]} 38. Rxg2 {[%clk 0:00:07.6]} 38... Qh4 {[%clk
0:00:24]} 39. Qd7 {[%clk 0:00:07.3]} 39... Re6 {[%clk 0:00:21.1]} 40. Bg5 {[%clk
0:00:05.6]} 40... Qe4 {[%clk 0:00:18.3]} 41. Qd1 {[%clk 0:00:03.8]} 41... Nf4
{[%clk 0:00:17.7]} 42. Bxf4 {[%clk 0:00:01.7]} 42... exf4 {[%clk 0:00:17.9]} 43.
Rg5 {[%clk 0:00:01.7]} 43... Qe1+ {[%clk 0:00:17.7]} 44. Qxe1 {[%clk 0:00:02.3]}
44... Rxe1+ {[%clk 0:00:18.3]} 45. Kg2 {[%clk 0:00:03.1]} 45... Rb1 {[%clk
0:00:18.4]} 46. Kf3 {[%clk 0:00:03.9]} 46... Rxb2 {[%clk 0:00:18.7]} 47. h4
{[%clk 0:00:04.6]} 47... Rb3 {[%clk 0:00:18.6]} 48. h5 {[%clk 0:00:05.2]} 48...
Rxc3+ {[%clk 0:00:18.8]} 49. Kg4 {[%clk 0:00:05.6]} 49... Kf8 {[%clk 0:00:18.3]}
50. f3 {[%clk 0:00:04.9]} 50... Rc4 {[%clk 0:00:18]} 51. Rxa5 {[%clk 0:00:03.9]}
51... Ke7 {[%clk 0:00:11.9]} 52. Kg5 {[%clk 0:00:04.2]} 52... Rd4 {[%clk
0:00:11.6]} 53. h6 {[%clk 0:00:03.6]} 53... Rd5+ {[%clk 0:00:11.6]} 54. Rxd5
{[%clk 0:00:03.2]} 54... Bxh6+ {[%clk 0:00:11.7]} 55. Kxh6 {[%clk 0:00:03.7]}
55... cxd5 {[%clk 0:00:11.9]} 56. Kg5 {[%clk 0:00:04.4]} 56... Kd6 {[%clk
0:00:12.4]} 57. Kxf4 {[%clk 0:00:05.3]} 57... Kc5 {[%clk 0:00:13.1]} 58. Ke3
{[%clk 0:00:05.6]} 58... Kc4 {[%clk 0:00:13.5]} 59. Kd2 {[%clk 0:00:05.8]} 59...
d4 {[%clk 0:00:13]} 60. a5 {[%clk 0:00:05.6]} 60... d3 {[%clk 0:00:13]} 61. f4
{[%clk 0:00:05.5]} 61... f5 {[%clk 0:00:12.6]} 62. Kd1 {[%clk 0:00:04.7]} 62...
Kd4 {[%clk 0:00:11.5]} 63. Kd2 {[%clk 0:00:05]} 63... Ke4 {[%clk 0:00:12]} 64.
Kc3 {[%clk 0:00:05.2]} 64... Ke3 {[%clk 0:00:12.2]} 65. Kc4 {[%clk 0:00:05.2]}
65... d2 {[%clk 0:00:12.5]} 66. Kb5 {[%clk 0:00:06.1]} 66... d1=Q {[%clk
0:00:11.9]} 67. Kb6 {[%clk 0:00:07]} 67... Qd5 {[%clk 0:00:12.3]} 68. Ka7 {[%clk
0:00:06.9]} 68... Qc6 {[%clk 0:00:12.7]} 69. Kb8 {[%clk 0:00:07.3]} 69... Kxf4
{[%clk 0:00:13.3]} 70. Ka7 {[%clk 0:00:07.8]} 70... Ke4 {[%clk 0:00:13.1]} 71.
Kb8 {[%clk 0:00:08.4]} 71... Qa6 {[%clk 0:00:13.5]} 72. Kc7 {[%clk 0:00:08.7]}
72... f4 {[%clk 0:00:14.2]} 73. Kb8 {[%clk 0:00:09.6]} 73... f3 {[%clk
0:00:15.1]} 74. Kc7 {[%clk 0:00:10.4]} 74... f2 {[%clk 0:00:16]} 75. Kb8 {[%clk
0:00:11.3]} 75... f1=Q {[%clk 0:00:16.3]} 76. Kc7 {[%clk 0:00:12.2]} 76... Qf7+
{[%clk 0:00:16.7]} 77. Kb8 {[%clk 0:00:13.1]} 77... Qe8+ {[%clk 0:00:14.7]} 78.
Kc7 {[%clk 0:00:13.3]} 78... Qac6# {[%clk 0:00:15]} 0-1

[Event "*** Titled Tuesday Blitz"]
[Site "Chess.com"]
[Date "2020.04.14"]
[Round "6"]
[White "josmito10"]
[Black "Mikhail_Biryukov"]
[Result "1-0"]
[WhiteElo "2752"]
[BlackElo "2585"]
[TimeControl "180+1"]
[EndTime "11:05:07 PDT"]
[Termination "josmito10 won by resignation"]

1. d4 {[%clk 0:03:00.5]} 1... Nf6 {[%clk 0:02:58.9]} 2. c4 {[%clk 0:03:01.1]}
2... e6 {[%clk 0:02:58.9]} 3. g3 {[%clk 0:03:01.7]} 3... d5 {[%clk 0:02:58.4]}
4. Nf3 {[%clk 0:03:02.3]} 4... dxc4 {[%clk 0:02:57.7]} 5. Bg2 {[%clk 0:03:02.4]}
5... Bb4+ {[%clk 0:02:57.6]} 6. Bd2 {[%clk 0:03:02.6]} 6... c5 {[%clk
0:02:58.2]} 7. Bxb4 {[%clk 0:03:00.7]} 7... cxb4 {[%clk 0:02:58.1]} 8. Ne5
{[%clk 0:03:01.3]} 8... O-O {[%clk 0:02:57.3]} 9. Nxc4 {[%clk 0:03:00.9]} 9...
Nc6 {[%clk 0:02:57.5]} 10. e3 {[%clk 0:03:01.4]} 10... e5 {[%clk 0:02:57.6]} 11.
dxe5 {[%clk 0:02:50.6]} 11... Qxd1+ {[%clk 0:02:56.6]} 12. Kxd1 {[%clk
0:02:51.5]} 12... Ng4 {[%clk 0:02:57.3]} 13. Ke2 {[%clk 0:02:47.7]} 13... Ngxe5
{[%clk 0:02:56.6]} 14. Nbd2 {[%clk 0:02:46.9]} 14... Bf5 {[%clk 0:02:32.9]} 15.
Nxe5 {[%clk 0:02:34.1]} 15... Nxe5 {[%clk 0:02:32.6]} 16. Be4 {[%clk 0:02:34.8]}
16... Bd7 {[%clk 0:02:24.6]} 17. Rhd1 {[%clk 0:02:21.6]} 17... Bb5+ {[%clk
0:02:23.4]} 18. Ke1 {[%clk 0:02:21.2]} 18... Rad8 {[%clk 0:02:03.2]} 19. Nf3
{[%clk 0:02:07.9]} 19... f5 {[%clk 0:01:42.4]} 20. Nxe5 {[%clk 0:01:56.8]} 20...
fxe4 {[%clk 0:01:41.4]} 21. Rd4 {[%clk 0:01:43]} 21... Rxd4 {[%clk 0:01:32.5]}
22. exd4 {[%clk 0:01:43.2]} 22... e3 {[%clk 0:01:32.9]} 23. f4 {[%clk
0:01:38.3]} 23... Rc8 {[%clk 0:01:31.3]} 24. Kd1 {[%clk 0:00:57.5]} 24... h5
{[%clk 0:01:29.7]} 25. Nf3 {[%clk 0:00:47]} 25... Kf7 {[%clk 0:01:15.6]} 26. a4
{[%clk 0:00:42.4]} 26... Ba6 {[%clk 0:00:50.8]} 27. Ne1 {[%clk 0:00:32.1]} 27...
Ke6 {[%clk 0:00:47.9]} 28. Nc2 {[%clk 0:00:31.2]} 28... Kd5 {[%clk 0:00:14.6]}
29. Nxe3+ {[%clk 0:00:30.5]} 29... Kxd4 {[%clk 0:00:14.3]} 30. Nf5+ {[%clk
0:00:30.7]} 30... Kd3 {[%clk 0:00:13.9]} 31. Nxg7 {[%clk 0:00:30.8]} 31... Rc2
{[%clk 0:00:13.3]} 32. Ke1 {[%clk 0:00:24.7]} 32... Rxh2 {[%clk 0:00:12]} 33.
Rd1+ {[%clk 0:00:23.1]} 33... Ke4 {[%clk 0:00:10.5]} 34. Rd7 {[%clk 0:00:14.6]}
34... Rxb2 {[%clk 0:00:09.9]} 35. Re7+ {[%clk 0:00:14.8]} 35... Kd5 {[%clk
0:00:09.8]} 36. f5 {[%clk 0:00:14.7]} 36... b3 {[%clk 0:00:09.8]} 37. f6 {[%clk
0:00:14.1]} 37... Rb1+ {[%clk 0:00:10.1]} 38. Kd2 {[%clk 0:00:14.4]} 38... Rf1
{[%clk 0:00:10.7]} 39. Kc3 {[%clk 0:00:12.4]} 39... Rf3+ {[%clk 0:00:10.3]} 40.
Kb2 {[%clk 0:00:12.7]} 40... Bc4 {[%clk 0:00:10.8]} 41. f7 {[%clk 0:00:11.9]}
41... Kc5 {[%clk 0:00:11.1]} 42. Rc7+ {[%clk 0:00:10.1]} 42... Kb4 {[%clk
0:00:10.8]} 43. Rxb7+ {[%clk 0:00:09.9]} 43... Kxa4 {[%clk 0:00:10]} 44. Rxa7+
{[%clk 0:00:10]} 44... Kb4 {[%clk 0:00:10.6]} 45. Rb7+ {[%clk 0:00:10.9]} 45...
Bb5 {[%clk 0:00:10.8]} 46. Ne6 {[%clk 0:00:08.7]} 46... Rf2+ {[%clk 0:00:10.7]}
47. Kb1 {[%clk 0:00:07.7]} 47... Kc3 {[%clk 0:00:06.1]} 48. Rc7+ {[%clk
0:00:06.6]} 48... Bc4 {[%clk 0:00:04.8]} 49. f8=Q {[%clk 0:00:06.7]} 49... Rc2
{[%clk 0:00:02.9]} 50. Qf6+ {[%clk 0:00:06.6]} 50... Kb4 {[%clk 0:00:03.1]} 51.
Qe7+ {[%clk 0:00:07]} 51... Kc3 {[%clk 0:00:03.2]} 52. Qf6+ {[%clk 0:00:06.8]}
52... Kb4 {[%clk 0:00:03.6]} 53. Rxc4+ {[%clk 0:00:06.4]} 53... Rxc4 {[%clk
0:00:02.9]} 54. Nf4 {[%clk 0:00:06.4]} 54... Re4 {[%clk 0:00:02.8]} 55. Qb6+
{[%clk 0:00:05.3]} 55... Ka3 {[%clk 0:00:02.5]} 56. Qa5+ {[%clk 0:00:04.8]}
56... Ra4 {[%clk 0:00:02.6]} 57. Qc5+ {[%clk 0:00:05.1]} 1-0

[Event "*** Titled Tuesday Blitz"]
[Site "Chess.com"]
[Date "2020.04.14"]
[Round "6"]
[White "tvjosue"]
[Black "Kirill_Klukin"]
[Result "1-0"]
[WhiteElo "2499"]
[BlackElo "2690"]
[TimeControl "180+1"]
[EndTime "11:05:07 PDT"]
[Termination "tvjosue won by checkmate"]

1. c4 {[%clk 0:03:00.9]} 1... e5 {[%clk 0:02:59.8]} 2. d3 {[%clk 0:03:00.6]}
2... Nf6 {[%clk 0:02:59.5]} 3. Nf3 {[%clk 0:03:00.7]} 3... Nc6 {[%clk
0:02:59.6]} 4. a3 {[%clk 0:03:00.2]} 4... d5 {[%clk 0:02:58.7]} 5. cxd5 {[%clk
0:03:01.1]} 5... Nxd5 {[%clk 0:02:59.1]} 6. e4 {[%clk 0:02:59.8]} 6... Nb6
{[%clk 0:02:57.1]} 7. Be3 {[%clk 0:02:58.5]} 7... Bg4 {[%clk 0:02:37.5]} 8. Nbd2
{[%clk 0:02:57.9]} 8... Be7 {[%clk 0:02:36.7]} 9. Be2 {[%clk 0:02:56.9]} 9...
O-O {[%clk 0:02:36.5]} 10. O-O {[%clk 0:02:57.4]} 10... Qd7 {[%clk 0:02:24.9]}
11. Rc1 {[%clk 0:02:54.9]} 11... Rfd8 {[%clk 0:02:22.3]} 12. b4 {[%clk
0:02:40.6]} 12... a6 {[%clk 0:02:21.3]} 13. h3 {[%clk 0:02:33.6]} 13... Be6
{[%clk 0:02:19.8]} 14. Rxc6 {[%clk 0:02:28.3]} 14... Qxc6 {[%clk 0:02:12.4]} 15.
Nxe5 {[%clk 0:02:28.7]} 15... Qa4 {[%clk 0:01:53.6]} 16. Qc1 {[%clk 0:02:26.5]}
16... Rac8 {[%clk 0:01:45.4]} 17. d4 {[%clk 0:02:16.5]} 17... f6 {[%clk
0:01:39.2]} 18. Bd1 {[%clk 0:02:06.1]} 18... Qe8 {[%clk 0:01:38]} 19. Nef3
{[%clk 0:02:05.7]} 19... c6 {[%clk 0:01:31.2]} 20. Qb1 {[%clk 0:01:55]} 20...
Nc4 {[%clk 0:01:29.8]} 21. Bb3 {[%clk 0:01:43.5]} 21... Qf7 {[%clk 0:01:29]} 22.
Nxc4 {[%clk 0:01:39.6]} 22... Bxc4 {[%clk 0:01:29.1]} 23. Bxc4 {[%clk
0:01:40.5]} 23... Qxc4 {[%clk 0:01:29.5]} 24. Rc1 {[%clk 0:01:37.1]} 24... Qe6
{[%clk 0:01:29.6]} 25. a4 {[%clk 0:01:31.5]} 25... b5 {[%clk 0:01:18.2]} 26. a5
{[%clk 0:01:24.3]} 26... Bf8 {[%clk 0:01:14.2]} 27. Bd2 {[%clk 0:01:19.7]} 27...
Re8 {[%clk 0:00:48.3]} 28. Re1 {[%clk 0:01:14.9]} 28... Qc4 {[%clk 0:00:43.8]}
29. Rc1 {[%clk 0:01:13.1]} 29... Qf7 {[%clk 0:00:37.5]} 30. Qc2 {[%clk
0:01:11.3]} 30... Bd6 {[%clk 0:00:36.1]} 31. Qd3 {[%clk 0:01:05.2]} 31... Qe7
{[%clk 0:00:35.8]} 32. Re1 {[%clk 0:01:01.3]} 32... Kh8 {[%clk 0:00:32.7]} 33.
Qb3 {[%clk 0:01:00.6]} 33... Qe6 {[%clk 0:00:32.6]} 34. Qc2 {[%clk 0:00:54.3]}
34... Qc4 {[%clk 0:00:30.7]} 35. Qb1 {[%clk 0:00:50.2]} 35... Bf8 {[%clk
0:00:27.6]} 36. Rc1 {[%clk 0:00:50]} 36... Qe6 {[%clk 0:00:27.8]} 37. Re1 {[%clk
0:00:50.4]} 37... Rcd8 {[%clk 0:00:26.7]} 38. e5 {[%clk 0:00:44.5]} 38... fxe5
{[%clk 0:00:23.8]} 39. Ng5 {[%clk 0:00:42.9]} 39... Qg8 {[%clk 0:00:19.9]} 40.
Qf5 {[%clk 0:00:31.7]} 40... Re7 {[%clk 0:00:11.5]} 41. Rxe5 {[%clk 0:00:30.4]}
41... Red7 {[%clk 0:00:09.8]} 42. Be3 {[%clk 0:00:23.9]} 42... h6 {[%clk
0:00:09.7]} 43. Ne6 {[%clk 0:00:22.3]} 43... Bd6 {[%clk 0:00:04.6]} 44. Nxd8
{[%clk 0:00:20.7]} 44... Rxd8 {[%clk 0:00:05.1]} 45. Re6 {[%clk 0:00:18.4]}
45... Qh7 {[%clk 0:00:05.1]} 46. Qxh7+ {[%clk 0:00:12.8]} 46... Kxh7 {[%clk
0:00:06]} 47. g3 {[%clk 0:00:13.2]} 47... Kg8 {[%clk 0:00:06.6]} 48. f4 {[%clk
0:00:12.3]} 48... Kf7 {[%clk 0:00:06.7]} 49. f5 {[%clk 0:00:12.8]} 49... Rd7
{[%clk 0:00:07.1]} 50. g4 {[%clk 0:00:12.7]} 50... Rd8 {[%clk 0:00:06.1]} 51.
Kg2 {[%clk 0:00:13]} 51... Rd7 {[%clk 0:00:06.5]} 52. Bd2 {[%clk 0:00:12.5]}
52... Be7 {[%clk 0:00:04.4]} 53. Bc3 {[%clk 0:00:11.5]} 53... Rd6 {[%clk
0:00:04.7]} 54. Rxd6 {[%clk 0:00:11.2]} 54... Bxd6 {[%clk 0:00:05.6]} 55. Kf3
{[%clk 0:00:12]} 55... Ke7 {[%clk 0:00:05.6]} 56. Ke4 {[%clk 0:00:12.1]} 56...
Kf7 {[%clk 0:00:05]} 57. d5 {[%clk 0:00:10.8]} 57... c5 {[%clk 0:00:05.3]} 58.
bxc5 {[%clk 0:00:11.7]} 58... Bxc5 {[%clk 0:00:06.2]} 59. Ke5 {[%clk 0:00:12.3]}
59... Ke7 {[%clk 0:00:06.4]} 60. Bd4 {[%clk 0:00:09.5]} 60... Bd6+ {[%clk
0:00:04]} 61. Ke4 {[%clk 0:00:09.4]} 61... Kf7 {[%clk 0:00:04]} 62. h4 {[%clk
0:00:08.4]} 62... Bb4 {[%clk 0:00:04.4]} 63. g5 {[%clk 0:00:07.6]} 63... hxg5
{[%clk 0:00:04.2]} 64. hxg5 {[%clk 0:00:08.5]} 64... Bxa5 {[%clk 0:00:05.1]} 65.
g6+ {[%clk 0:00:09.4]} 65... Kf8 {[%clk 0:00:05.4]} 66. Bc5+ {[%clk 0:00:09.7]}
66... Ke8 {[%clk 0:00:04.6]} 67. d6 {[%clk 0:00:10.6]} 67... Bd8 {[%clk
0:00:04.6]} 68. Kd5 {[%clk 0:00:11.5]} 68... Bf6 {[%clk 0:00:04.4]} 69. Kc6
{[%clk 0:00:10.6]} 69... Bd8 {[%clk 0:00:02.9]} 70. d7# {[%clk 0:00:09.3]} 1-0